[Event "Titled Tuesday Blitz January 31 Early 2023"]
[White "Martynov, Pavel"]
[Black "Kilic, Eray"]
[WhiteFideId "4101260"]
[BlackFideId "44517173"]
[WhiteElo "2414"]
[BlackElo "2414"]
[Result "0-1"]
[Round "02"]
[TimeControl "180+2"]
[Date "2023.01.31"]
[WhiteClock "0:00:01"]
[BlackClock "0:00:17"]

1. e4 {[%clk 0:02:43]}  c5 {[%clk 0:02:59]} 2. Nf3 {[%clk 0:02:43]}  d6 {[%clk 0:03:00]} 3. Bb5+ {[%clk 0:02:43]}  Nd7 {[%clk 0:03:00]} 4. O-O {[%clk 0:02:43]}  Nf6 {[%clk 0:03:00]} 5. Re1 {[%clk 0:02:42]}  a6 {[%clk 0:03:00]} 6. Bxd7+ {[%clk 0:02:43]}  Bxd7 {[%clk 0:02:59]} 7. c3 {[%clk 0:02:43]}  Bc6 {[%clk 0:02:57]} 8. d4 {[%clk 0:02:44]}  cxd4 {[%clk 0:02:47]} 9. cxd4 {[%clk 0:02:45]}  e6 {[%clk 0:02:19]} 10. d5 {[%clk 0:02:31]}  Bd7 {[%clk 0:02:18]} 11. dxe6 {[%clk 0:01:41]}  Bxe6 {[%clk 0:02:15]} 12. Nc3 {[%clk 0:01:41]}  Be7 {[%clk 0:02:15]} 13. Bf4 {[%clk 0:01:34]}  O-O {[%clk 0:02:14]} 14. Qd2 {[%clk 0:01:28]}  Qb6 {[%clk 0:01:49]} 15. Nd5 {[%clk 0:01:12]}  Bxd5 {[%clk 0:01:49]} 16. exd5 {[%clk 0:01:13]}  Rfe8 {[%clk 0:01:49]} 17. h3 {[%clk 0:01:06]}  Rac8 {[%clk 0:01:42]} 18. Rad1 {[%clk 0:00:58]}  Bf8 {[%clk 0:01:39]} 19. b3 {[%clk 0:00:45]}  Qb5 {[%clk 0:01:21]} 20. Rxe8 {[%clk 0:00:30]}  Rxe8 {[%clk 0:01:22]} 21. Bg5 {[%clk 0:00:29]}  Ne4 {[%clk 0:01:03]} 22. Qd4 {[%clk 0:00:29]}  h6 {[%clk 0:00:56]} 23. Be3 {[%clk 0:00:24]}  Nc5 {[%clk 0:00:48]} 24. Rc1 {[%clk 0:00:18]}  a5 {[%clk 0:00:43]} 25. Kh2 {[%clk 0:00:16]}  g6 {[%clk 0:00:38]} 26. Qc4 {[%clk 0:00:14]}  Qd7 {[%clk 0:00:37]} 27. Bxc5 {[%clk 0:00:13]}  dxc5 {[%clk 0:00:37]} 28. a4 {[%clk 0:00:12]}  Bd6+ {[%clk 0:00:36]} 29. g3 {[%clk 0:00:09]}  Qf5 {[%clk 0:00:36]} 30. Kg2 {[%clk 0:00:08]}  Re4 {[%clk 0:00:30]} 31. Qd3 {[%clk 0:00:06]}  Rb4 {[%clk 0:00:24]} 32. Rd1 {[%clk 0:00:06]}  Qf6 {[%clk 0:00:18]} 33. Nd2 {[%clk 0:00:05]}  Rd4 {[%clk 0:00:18]} 34. Ne4 {[%clk 0:00:05]}  Qe5 {[%clk 0:00:17]} 35. Qxd4 {[%clk 0:00:01]}  cxd4 {[%clk 0:00:17]} 36. Nxd6 {[%clk 0:00:02]}  Qxd5+ {[%clk 0:00:17]} 37. f3 {[%clk 0:00:01]}  Qxd6 {[%clk 0:00:17]} 0-1


[Site "https://www.chess.com"]

[Event "Titled Tuesday Blitz January 31 Early 2023"]
[White "Borges Feria, Yasel"]
[Black "Solovchuk, Oleksiy"]
[WhiteFideId "3504921"]
[BlackFideId "14115220"]
[WhiteElo "2439"]
[BlackElo "2303"]
[Result "0-1"]
[Round "02"]
[TimeControl "180+2"]
[Date "2023.01.31"]
[WhiteClock "0:00:16"]
[BlackClock "0:00:25"]

1. d4 {[%clk 0:03:00]}  Nf6 {[%clk 0:02:59]} 2. c4 {[%clk 0:03:00]}  e6 {[%clk 0:02:59]} 3. Nf3 {[%clk 0:03:00]}  b6 {[%clk 0:02:59]} 4. g3 {[%clk 0:02:58]}  Ba6 {[%clk 0:02:59]} 5. b3 {[%clk 0:02:55]}  c6 {[%clk 0:02:58]} 6. Bg2 {[%clk 0:02:53]}  d5 {[%clk 0:02:58]} 7. Nbd2 {[%clk 0:02:52]}  Nbd7 {[%clk 0:02:57]} 8. O-O {[%clk 0:02:52]}  Bd6 {[%clk 0:02:54]} 9. Bb2 {[%clk 0:02:52]}  Qc7 {[%clk 0:02:49]} 10. Rc1 {[%clk 0:02:50]}  O-O {[%clk 0:02:43]} 11. Re1 {[%clk 0:02:45]}  b5 {[%clk 0:01:45]} 12. cxb5 {[%clk 0:02:04]}  Bxb5 {[%clk 0:01:44]} 13. e4 {[%clk 0:02:03]}  dxe4 {[%clk 0:01:42]} 14. Ng5 {[%clk 0:02:00]}  Bb4 {[%clk 0:01:32]} 15. a3 {[%clk 0:01:45]}  Bxd2 {[%clk 0:01:31]} 16. Qxd2 {[%clk 0:01:46]}  Bd3 {[%clk 0:01:29]} 17. Nxe4 {[%clk 0:01:30]}  Bxe4 {[%clk 0:01:28]} 18. Bxe4 {[%clk 0:01:31]}  Nxe4 {[%clk 0:01:28]} 19. Rxe4 {[%clk 0:01:32]}  Nf6 {[%clk 0:01:28]} 20. Rh4 {[%clk 0:01:17]}  Nd5 {[%clk 0:01:15]} 21. Qc2 {[%clk 0:01:15]}  h6 {[%clk 0:01:05]} 22. Re4 {[%clk 0:01:09]}  Rfb8 {[%clk 0:00:59]} 23. Rb1 {[%clk 0:01:00]}  a5 {[%clk 0:00:58]} 24. Ree1 {[%clk 0:00:59]}  Rb6 {[%clk 0:00:52]} 25. Bc1 {[%clk 0:00:57]}  Qb7 {[%clk 0:00:48]} 26. Bd2 {[%clk 0:00:57]}  a4 {[%clk 0:00:41]} 27. b4 {[%clk 0:00:56]}  Nc7 {[%clk 0:00:19]} 28. Bc3 {[%clk 0:00:41]}  Nb5 {[%clk 0:00:19]} 29. Bb2 {[%clk 0:00:41]}  Qd7 {[%clk 0:00:19]} 30. Red1 {[%clk 0:00:41]}  Qd5 {[%clk 0:00:19]} 31. Qc5 {[%clk 0:00:30]}  Rba6 {[%clk 0:00:19]} 32. Qxd5 {[%clk 0:00:28]}  cxd5 {[%clk 0:00:18]} 33. Rbc1 {[%clk 0:00:27]}  Nd6 {[%clk 0:00:18]} 34. Rc5 {[%clk 0:00:27]}  Nc4 {[%clk 0:00:18]} 35. Bc1 {[%clk 0:00:28]}  Rb6 {[%clk 0:00:18]} 36. Kf1 {[%clk 0:00:26]}  Kh7 {[%clk 0:00:18]} 37. Rd3 {[%clk 0:00:25]}  Rb7 {[%clk 0:00:18]} 38. Ke2 {[%clk 0:00:24]}  g5 {[%clk 0:00:18]} 39. Rf3 {[%clk 0:00:24]}  Kg6 {[%clk 0:00:19]} 40. Rc3 {[%clk 0:00:23]}  Ra6 {[%clk 0:00:19]} 41. h3 {[%clk 0:00:24]}  f5 {[%clk 0:00:18]} 42. g4 {[%clk 0:00:23]}  f4 {[%clk 0:00:18]} 43. Kd3 {[%clk 0:00:23]}  Kf6 {[%clk 0:00:19]} 44. Ke2 {[%clk 0:00:23]}  Ra8 {[%clk 0:00:17]} 45. Kf3 {[%clk 0:00:21]}  Rd8 {[%clk 0:00:18]} 46. Ke2 {[%clk 0:00:20]}  Re7 {[%clk 0:00:18]} 47. Kf3 {[%clk 0:00:20]}  e5 {[%clk 0:00:18]} 48. dxe5+ {[%clk 0:00:21]}  Nxe5+ {[%clk 0:00:18]} 49. Kg2 {[%clk 0:00:20]}  d4 {[%clk 0:00:19]} 50. Rc2 {[%clk 0:00:18]}  Nd3 {[%clk 0:00:20]} 51. R5c4 {[%clk 0:00:16]}  Re6 {[%clk 0:00:20]} 52. Bb2 {[%clk 0:00:15]}  Ne1+ {[%clk 0:00:21]} 53. Kf1 {[%clk 0:00:14]}  Nxc2 {[%clk 0:00:22]} 54. Rxc2 {[%clk 0:00:15]}  Ke5 {[%clk 0:00:21]} 55. Rc5+ {[%clk 0:00:12]}  Ke4 {[%clk 0:00:22]} 56. Ke2 {[%clk 0:00:13]}  f3+ {[%clk 0:00:22]} 57. Kd2 {[%clk 0:00:13]}  Rd5 {[%clk 0:00:22]} 58. Rc8 {[%clk 0:00:12]}  Ke5 {[%clk 0:00:22]} 59. Kd3 {[%clk 0:00:12]}  Kd6 {[%clk 0:00:22]} 60. Rd8+ {[%clk 0:00:12]}  Kc6 {[%clk 0:00:22]} 61. Rc8+ {[%clk 0:00:12]}  Kb7 {[%clk 0:00:22]} 62. Rc4 {[%clk 0:00:12]}  Re2 {[%clk 0:00:22]} 63. Bxd4 {[%clk 0:00:13]}  Rxf2 {[%clk 0:00:22]} 64. Ke4 {[%clk 0:00:14]}  Rxd4+ {[%clk 0:00:23]} 65. Rxd4 {[%clk 0:00:14]}  Ra2 {[%clk 0:00:23]} 66. Rd3 {[%clk 0:00:13]}  f2 {[%clk 0:00:22]} 67. Rf3 {[%clk 0:00:13]}  Rxa3 {[%clk 0:00:23]} 68. Rxf2 {[%clk 0:00:14]}  Rxh3 {[%clk 0:00:24]} 69. Rf6 {[%clk 0:00:11]}  a3 {[%clk 0:00:23]} 70. Rf7+ {[%clk 0:00:11]}  Kb6 {[%clk 0:00:23]} 71. Rf8 {[%clk 0:00:12]}  Kb5 {[%clk 0:00:23]} 72. Ra8 {[%clk 0:00:12]}  Kxb4 {[%clk 0:00:23]} 73. Rb8+ {[%clk 0:00:13]}  Kc3 {[%clk 0:00:23]} 74. Ra8 {[%clk 0:00:14]}  Kb2 {[%clk 0:00:24]} 75. Rb8+ {[%clk 0:00:14]}  Rb3 {[%clk 0:00:24]} 76. Rd8 {[%clk 0:00:15]}  a2 {[%clk 0:00:25]} 77. Rd2+ {[%clk 0:00:16]}  Ka3 {[%clk 0:00:25]} 0-1


[Site "https://www.chess.com"]

[Event "Titled Tuesday Blitz January 31 Early 2023"]
[White "Sharapov, Evgeny"]
[Black "Boros, Denes"]
[WhiteFideId "14103133"]
[BlackFideId "722340"]
[WhiteElo "2375"]
[BlackElo "2406"]
[Result "0-1"]
[Round "02"]
[TimeControl "180+2"]
[Date "2023.01.31"]
[WhiteClock "0:00:26"]
[BlackClock "0:00:52"]

1. e4 {[%clk 0:02:59]}  g6 {[%clk 0:02:59]} 2. d4 {[%clk 0:02:59]}  d5 {[%clk 0:03:00]} 3. exd5 {[%clk 0:02:57]}  Qxd5 {[%clk 0:03:01]} 4. Nc3 {[%clk 0:02:57]}  Qd8 {[%clk 0:03:01]} 5. Nf3 {[%clk 0:02:57]}  Bg7 {[%clk 0:03:02]} 6. Be3 {[%clk 0:02:57]}  Nh6 {[%clk 0:03:02]} 7. Qd2 {[%clk 0:02:50]}  Nf5 {[%clk 0:03:02]} 8. O-O-O {[%clk 0:02:49]}  a6 {[%clk 0:02:58]} 9. Kb1 {[%clk 0:02:49]}  b5 {[%clk 0:02:58]} 10. h4 {[%clk 0:02:46]}  Bb7 {[%clk 0:02:54]} 11. h5 {[%clk 0:02:44]}  Nxe3 {[%clk 0:02:48]} 12. fxe3 {[%clk 0:02:43]}  Nd7 {[%clk 0:02:46]} 13. hxg6 {[%clk 0:02:42]}  hxg6 {[%clk 0:02:47]} 14. Rxh8+ {[%clk 0:02:42]}  Bxh8 {[%clk 0:02:48]} 15. Bd3 {[%clk 0:02:41]}  Bg7 {[%clk 0:02:43]} 16. Be4 {[%clk 0:02:37]}  c6 {[%clk 0:02:42]} 17. d5 {[%clk 0:02:34]}  Qc7 {[%clk 0:02:41]} 18. dxc6 {[%clk 0:02:29]}  Bxc6 {[%clk 0:02:42]} 19. Bxc6 {[%clk 0:02:29]}  Qxc6 {[%clk 0:02:43]} 20. Nd4 {[%clk 0:02:28]}  Bxd4 {[%clk 0:02:36]} 21. Qxd4 {[%clk 0:02:26]}  O-O-O {[%clk 0:02:36]} 22. Nd5 {[%clk 0:02:16]}  Qd6 {[%clk 0:02:21]} 23. Qa7 {[%clk 0:02:10]}  e6 {[%clk 0:02:21]} 24. Ne7+ {[%clk 0:01:40]}  Qxe7 {[%clk 0:02:20]} 25. Qxa6+ {[%clk 0:01:40]}  Kc7 {[%clk 0:02:15]} 26. Qa5+ {[%clk 0:01:28]}  Nb6 {[%clk 0:01:54]} 27. Rd3 {[%clk 0:01:04]}  Rxd3 {[%clk 0:01:41]} 28. cxd3 {[%clk 0:01:04]}  Qd7 {[%clk 0:01:41]} 29. Kc2 {[%clk 0:01:00]}  Qc6+ {[%clk 0:01:41]} 30. Kd1 {[%clk 0:00:58]}  Kb7 {[%clk 0:01:35]} 31. e4 {[%clk 0:00:56]}  Qc5 {[%clk 0:01:31]} 32. Qd2 {[%clk 0:00:53]}  Qd4 {[%clk 0:01:27]} 33. Kc2 {[%clk 0:00:49]}  f5 {[%clk 0:01:26]} 34. Qg5 {[%clk 0:00:45]}  fxe4 {[%clk 0:01:22]} 35. Qxg6 {[%clk 0:00:44]}  Qxd3+ {[%clk 0:01:10]} 36. Kc1 {[%clk 0:00:43]}  Qc4+ {[%clk 0:01:03]} 37. Kd2 {[%clk 0:00:39]}  Nd5 {[%clk 0:00:53]} 38. Qxe6 {[%clk 0:00:33]}  e3+ {[%clk 0:00:52]} 39. Ke1 {[%clk 0:00:27]}  Qc1+ {[%clk 0:00:51]} 40. Ke2 {[%clk 0:00:26]}  Nf4+ {[%clk 0:00:52]} 0-1


[Site "https://www.chess.com"]

[Event "Titled Tuesday Blitz January 31 Early 2023"]
[White "Bacrot, Etienne"]
[Black "Dilanyan, Grigor"]
[WhiteFideId "605506"]
[BlackFideId "13303570"]
[WhiteElo "2667"]
[BlackElo "2174"]
[Result "1-0"]
[Round "02"]
[TimeControl "180+2"]
[Date "2023.01.31"]
[WhiteClock "0:01:56"]
[BlackClock "0:01:30"]

1. e4 {[%clk 0:02:58]}  e5 {[%clk 0:02:59]} 2. Nf3 {[%clk 0:02:57]}  Nc6 {[%clk 0:02:57]} 3. Bb5 {[%clk 0:02:57]}  a6 {[%clk 0:02:56]} 4. Ba4 {[%clk 0:02:57]}  Nf6 {[%clk 0:02:55]} 5. O-O {[%clk 0:02:55]}  Nxe4 {[%clk 0:02:55]} 6. d4 {[%clk 0:02:52]}  b5 {[%clk 0:02:54]} 7. Bb3 {[%clk 0:02:52]}  d5 {[%clk 0:02:54]} 8. dxe5 {[%clk 0:02:51]}  Be6 {[%clk 0:02:53]} 9. Be3 {[%clk 0:02:50]}  Nc5 {[%clk 0:02:49]} 10. c3 {[%clk 0:02:41]}  Nxb3 {[%clk 0:02:48]} 11. axb3 {[%clk 0:02:42]}  Be7 {[%clk 0:02:48]} 12. Nd4 {[%clk 0:02:38]}  Nxd4 {[%clk 0:02:46]} 13. cxd4 {[%clk 0:02:38]}  O-O {[%clk 0:02:47]} 14. Nd2 {[%clk 0:02:38]}  f5 {[%clk 0:02:41]} 15. exf6 {[%clk 0:02:34]}  Bxf6 {[%clk 0:02:39]} 16. Rc1 {[%clk 0:02:29]}  Qd6 {[%clk 0:02:38]} 17. h3 {[%clk 0:02:27]}  Rf7 {[%clk 0:02:37]} 18. Nf3 {[%clk 0:02:26]}  Raf8 {[%clk 0:02:33]} 19. Qd2 {[%clk 0:02:22]}  h6 {[%clk 0:02:32]} 20. Bf4 {[%clk 0:02:21]}  Qd8 {[%clk 0:02:29]} 21. Ne5 {[%clk 0:02:19]}  Bxe5 {[%clk 0:02:26]} 22. Bxe5 {[%clk 0:02:20]}  Bf5 {[%clk 0:02:23]} 23. f3 {[%clk 0:02:16]}  Be6 {[%clk 0:02:07]} 24. Rc6 {[%clk 0:02:09]}  Rd7 {[%clk 0:01:30]} 25. Rxe6 {[%clk 0:01:56]} 1-0


[Site "https://www.chess.com"]

[Event "Titled Tuesday Blitz January 31 Early 2023"]
[White "Berezin, Viktor"]
[Black "Kukhmazov, Arsen"]
[WhiteFideId "14107872"]
[BlackFideId "24108260"]
[WhiteElo "2307"]
[BlackElo "2512"]
[Result "0-1"]
[Round "02"]
[TimeControl "180+2"]
[Date "2023.01.31"]
[WhiteClock "0:00:10"]
[BlackClock "0:00:08"]

1. d4 {[%clk 0:03:00]}  d5 {[%clk 0:02:56]} 2. c4 {[%clk 0:03:00]}  c6 {[%clk 0:02:56]} 3. Nf3 {[%clk 0:03:00]}  Nf6 {[%clk 0:02:56]} 4. e3 {[%clk 0:03:01]}  Bg4 {[%clk 0:02:56]} 5. Nbd2 {[%clk 0:02:58]}  e6 {[%clk 0:02:56]} 6. h3 {[%clk 0:02:58]}  Bh5 {[%clk 0:02:56]} 7. Qb3 {[%clk 0:02:57]}  Qb6 {[%clk 0:02:51]} 8. c5 {[%clk 0:02:58]}  Qc7 {[%clk 0:02:52]} 9. Be2 {[%clk 0:02:55]}  Nbd7 {[%clk 0:02:51]} 10. Qd1 {[%clk 0:02:41]}  b6 {[%clk 0:02:51]} 11. b4 {[%clk 0:02:40]}  a5 {[%clk 0:02:50]} 12. cxb6 {[%clk 0:02:36]}  Nxb6 {[%clk 0:02:48]} 13. b5 {[%clk 0:02:33]}  c5 {[%clk 0:02:47]} 14. dxc5 {[%clk 0:02:33]}  Bxc5 {[%clk 0:02:47]} 15. O-O {[%clk 0:02:33]}  a4 {[%clk 0:02:47]} 16. Bb2 {[%clk 0:02:29]}  O-O {[%clk 0:02:48]} 17. Bxf6 {[%clk 0:02:28]}  gxf6 {[%clk 0:02:47]} 18. Rc1 {[%clk 0:02:25]}  Qe7 {[%clk 0:02:48]} 19. Nd4 {[%clk 0:02:25]}  Bxd4 {[%clk 0:02:27]} 20. Bxh5 {[%clk 0:02:10]}  Bc5 {[%clk 0:02:26]} 21. Qg4+ {[%clk 0:01:57]}  Kh8 {[%clk 0:02:26]} 22. Qh4 {[%clk 0:01:58]}  Nd7 {[%clk 0:02:23]} 23. Be2 {[%clk 0:01:56]}  Rg8 {[%clk 0:02:09]} 24. g3 {[%clk 0:01:46]}  Rg7 {[%clk 0:01:58]} 25. Kh2 {[%clk 0:01:46]}  Rag8 {[%clk 0:01:58]} 26. Rc2 {[%clk 0:01:43]}  Bd6 {[%clk 0:01:52]} 27. f4 {[%clk 0:01:27]}  Bc5 {[%clk 0:01:37]} 28. e4 {[%clk 0:01:05]}  Be3 {[%clk 0:00:46]} 29. e5 {[%clk 0:00:58]}  Rxg3 {[%clk 0:00:43]} 30. Qxg3 {[%clk 0:00:50]}  Rxg3 {[%clk 0:00:43]} 31. Kxg3 {[%clk 0:00:51]}  fxe5 {[%clk 0:00:43]} 32. Kh2 {[%clk 0:00:22]}  Bxf4+ {[%clk 0:00:41]} 33. Kh1 {[%clk 0:00:22]}  Nb6 {[%clk 0:00:33]} 34. Rc6 {[%clk 0:00:18]}  Bxd2 {[%clk 0:00:25]} 35. Rxb6 {[%clk 0:00:17]}  Be3 {[%clk 0:00:22]} 36. Rc6 {[%clk 0:00:17]}  Qh4 {[%clk 0:00:13]} 37. Bg4 {[%clk 0:00:16]}  f5 {[%clk 0:00:10]} 38. Rf3 {[%clk 0:00:15]}  Qe1+ {[%clk 0:00:09]} 39. Kh2 {[%clk 0:00:10]}  Qg1# {[%clk 0:00:08]} 0-1


[Site "https://www.chess.com"]

[Event "Titled Tuesday Blitz January 31 Early 2023"]
[White "Ismagilov, Damir"]
[Black "Fier, Alexandr"]
[WhiteFideId "34199982"]
[BlackFideId "2107139"]
[WhiteElo "2156"]
[BlackElo "2589"]
[Result "0-1"]
[Round "02"]
[TimeControl "180+2"]
[Date "2023.01.31"]
[WhiteClock "0:00:11"]
[BlackClock "0:01:59"]

1. e4 {[%clk 0:03:00]}  e6 {[%clk 0:02:57]} 2. d4 {[%clk 0:03:00]}  d5 {[%clk 0:02:58]} 3. Nc3 {[%clk 0:03:00]}  Bb4 {[%clk 0:02:58]} 4. e5 {[%clk 0:03:01]}  c5 {[%clk 0:02:57]} 5. Bd2 {[%clk 0:02:59]}  Ne7 {[%clk 0:02:56]} 6. a3 {[%clk 0:02:59]}  Bxc3 {[%clk 0:02:56]} 7. Bxc3 {[%clk 0:03:00]}  b6 {[%clk 0:02:54]} 8. h4 {[%clk 0:03:00]}  Ba6 {[%clk 0:02:52]} 9. Bxa6 {[%clk 0:03:00]}  Nxa6 {[%clk 0:02:52]} 10. Nf3 {[%clk 0:03:00]}  Nb8 {[%clk 0:02:52]} 11. h5 {[%clk 0:03:00]}  h6 {[%clk 0:02:52]} 12. Qe2 {[%clk 0:03:00]}  Nbc6 {[%clk 0:02:52]} 13. g4 {[%clk 0:02:56]}  Qc7 {[%clk 0:02:52]} 14. Qe3 {[%clk 0:02:46]}  cxd4 {[%clk 0:02:45]} 15. Nxd4 {[%clk 0:02:41]}  Nxd4 {[%clk 0:02:45]} 16. Qxd4 {[%clk 0:02:35]}  Rc8 {[%clk 0:02:45]} 17. f4 {[%clk 0:02:22]}  Qc4 {[%clk 0:02:43]} 18. O-O-O {[%clk 0:01:45]}  Qa2 {[%clk 0:02:21]} 19. Kd2 {[%clk 0:01:45]}  Rc4 {[%clk 0:02:20]} 20. Qe3 {[%clk 0:01:25]}  d4 {[%clk 0:02:16]} 21. Bxd4 {[%clk 0:01:21]}  Nd5 {[%clk 0:02:16]} 22. Qe4 {[%clk 0:01:04]}  Qxb2 {[%clk 0:02:16]} 23. Bxb2 {[%clk 0:01:04]}  Rxe4 {[%clk 0:02:16]} 24. f5 {[%clk 0:01:01]}  Rxg4 {[%clk 0:02:15]} 25. fxe6 {[%clk 0:00:51]}  fxe6 {[%clk 0:02:16]} 26. Rhg1 {[%clk 0:00:51]}  Rxg1 {[%clk 0:02:07]} 27. Rxg1 {[%clk 0:00:51]}  O-O {[%clk 0:02:08]} 28. c4 {[%clk 0:00:47]}  Rf2+ {[%clk 0:02:06]} 29. Kc1 {[%clk 0:00:47]}  Nf4 {[%clk 0:02:06]} 30. Rd1 {[%clk 0:00:45]}  Nxh5 {[%clk 0:02:06]} 31. Rd8+ {[%clk 0:00:42]}  Kh7 {[%clk 0:02:06]} 32. Re8 {[%clk 0:00:40]}  Nf4 {[%clk 0:02:06]} 33. Bc3 {[%clk 0:00:36]}  h5 {[%clk 0:02:04]} 34. Kd1 {[%clk 0:00:32]}  h4 {[%clk 0:02:03]} 35. Rf8 {[%clk 0:00:31]}  h3 {[%clk 0:02:03]} 36. Bd4 {[%clk 0:00:13]}  Rf1+ {[%clk 0:01:59]} 37. Kd2 {[%clk 0:00:13]}  h2 {[%clk 0:01:59]} 38. Be3 {[%clk 0:00:11]}  h1=Q {[%clk 0:01:59]} 0-1


[Site "https://www.chess.com"]

[Event "Titled Tuesday Blitz January 31 Early 2023"]
[White "Garv Gaur"]
[Black "Harshavardhan G B"]
[WhiteFideId "45030839"]
[BlackFideId "25059009"]
[WhiteElo "2006"]
[BlackElo "2408"]
[Result "1-0"]
[Round "02"]
[TimeControl "180+2"]
[Date "2023.01.31"]
[WhiteClock "0:01:05"]
[BlackClock "0:00:13"]

1. d4 {[%clk 0:03:00]}  Nf6 {[%clk 0:02:58]} 2. Nf3 {[%clk 0:02:59]}  g6 {[%clk 0:02:57]} 3. c4 {[%clk 0:02:59]}  Bg7 {[%clk 0:02:56]} 4. g3 {[%clk 0:02:58]}  O-O {[%clk 0:02:56]} 5. Bg2 {[%clk 0:02:58]}  d6 {[%clk 0:02:56]} 6. O-O {[%clk 0:02:59]}  Nbd7 {[%clk 0:02:56]} 7. Nc3 {[%clk 0:03:00]}  e5 {[%clk 0:02:56]} 8. e4 {[%clk 0:03:00]}  exd4 {[%clk 0:02:55]} 9. Nxd4 {[%clk 0:03:01]}  Re8 {[%clk 0:02:56]} 10. h3 {[%clk 0:03:01]}  Nc5 {[%clk 0:02:54]} 11. Re1 {[%clk 0:03:01]}  Bd7 {[%clk 0:02:54]} 12. Bf4 {[%clk 0:02:57]}  a5 {[%clk 0:02:52]} 13. Ndb5 {[%clk 0:02:56]}  Ne6 {[%clk 0:02:37]} 14. Be3 {[%clk 0:02:53]}  Bc6 {[%clk 0:02:23]} 15. Qc2 {[%clk 0:02:48]}  Nd7 {[%clk 0:02:15]} 16. Rad1 {[%clk 0:02:47]}  h5 {[%clk 0:02:01]} 17. b3 {[%clk 0:02:39]}  Rc8 {[%clk 0:01:35]} 18. Nd5 {[%clk 0:02:38]}  Bxd5 {[%clk 0:01:27]} 19. exd5 {[%clk 0:02:38]}  Nec5 {[%clk 0:01:26]} 20. a3 {[%clk 0:02:22]}  h4 {[%clk 0:01:21]} 21. g4 {[%clk 0:02:21]}  Na6 {[%clk 0:01:20]} 22. Qd2 {[%clk 0:02:03]}  b6 {[%clk 0:01:17]} 23. Bg5 {[%clk 0:01:54]}  Rxe1+ {[%clk 0:01:16]} 24. Rxe1 {[%clk 0:01:54]}  Bf6 {[%clk 0:01:16]} 25. Bf4 {[%clk 0:01:48]}  Qf8 {[%clk 0:01:12]} 26. Bh6 {[%clk 0:01:42]}  Bg7 {[%clk 0:01:10]} 27. Bxg7 {[%clk 0:01:41]}  Qxg7 {[%clk 0:01:04]} 28. Na7 {[%clk 0:01:40]}  Ra8 {[%clk 0:01:02]} 29. Nc6 {[%clk 0:01:40]}  Qf6 {[%clk 0:00:56]} 30. Qh6 {[%clk 0:01:35]}  Qg7 {[%clk 0:00:39]} 31. Qxh4 {[%clk 0:01:31]}  Nac5 {[%clk 0:00:39]} 32. Qg3 {[%clk 0:01:30]}  a4 {[%clk 0:00:29]} 33. b4 {[%clk 0:01:29]}  Nb3 {[%clk 0:00:29]} 34. Re7 {[%clk 0:01:27]}  Qa1+ {[%clk 0:00:25]} 35. Kh2 {[%clk 0:01:27]}  Nf6 {[%clk 0:00:24]} 36. Qf4 {[%clk 0:01:20]}  Rf8 {[%clk 0:00:21]} 37. Rxc7 {[%clk 0:01:19]}  Kg7 {[%clk 0:00:21]} 38. Qxd6 {[%clk 0:01:08]}  Qxa3 {[%clk 0:00:21]} 39. Ne5 {[%clk 0:01:04]}  Qc1 {[%clk 0:00:18]} 40. Nxf7 {[%clk 0:01:02]}  Rxf7 {[%clk 0:00:18]} 41. Rxf7+ {[%clk 0:01:03]}  Kxf7 {[%clk 0:00:18]} 42. Qe6+ {[%clk 0:01:04]}  Kg7 {[%clk 0:00:17]} 43. Qe7+ {[%clk 0:01:04]}  Kg8 {[%clk 0:00:17]} 44. Qxf6 {[%clk 0:01:05]}  a3 {[%clk 0:00:18]} 45. Qxg6+ {[%clk 0:01:05]}  Kf8 {[%clk 0:00:17]} 46. Qf6+ {[%clk 0:01:05]}  Ke8 {[%clk 0:00:17]} 47. d6 {[%clk 0:01:05]}  Qe1 {[%clk 0:00:13]} 48. Bc6# {[%clk 0:01:05]} 1-0


[Site "https://www.chess.com"]